Workbook

Sheet Resumen
A1: INFORME situación actual a fecha | C1: =A5 -> 2024-11-17 | F1: STOCK MINIMO | G1: 50
F2: STOCK MAXIMO | G2: 15000
A4: Ultima fecha de registro | B4: PRODUCTOS | C4: Entradas | D4: Salidas | E4: PMP | F4: EXISTENCIAS ACTUALES- CANTIDAD | G4: Punto Reorden | H4: PMP con función COCIENTE
A5: =LOOKUP(2,1/(inventario!A:A<>""),inventario!A:A) -> 2024-11-17 | B5: Camiseta básica blanca | C5: =SUMIFS(inventario!$G$3:$G$26,inventario!$C$3:$C$26,Tabla1[[#This Row],[PRODUCTOS]],inventario!$G$3:$G$26,">0") -> 32000 | D5: =SUMIFS(inventario!$G$3:$G$26,inventario!$C$3:$C$26,Tabla1[[#This Row],[PRODUCTOS]],inventario!$G$3:$G$26,"<0") -> -17880 | E5: =SUMIFS(inventario!I3:I26,inventario!C3:C26,B5,inventario!D3:D26,"Entrada")/SUMIFS(inventario!G3:G26,inventario!C3:C26,B5,inventario!D3:D26,"Entrada") -> 20.64375 | F5: =SUMIFS(inventario!$G$3:$G$26,inventario!$C$3:$C$26,B5) -> 14120 | G5: =IF(Tabla1[[#This Row],[EXISTENCIAS ACTUALES- CANTIDAD]]<$G$1,"realizar un nuevo pedido",IF(Tabla1[[#This Row],[EXISTENCIAS ACTUALES- CANTIDAD]]>=$G$2,"superamos el stock máximo","")) ->  | H5: =QUOTIENT(SUMIFS(inventario!I3:I26,inventario!C3:C26,B5,inventario!D3:D26,"Entrada"),SUMIFS(inventario!G3:G26,inventario!C3:C26,B5,inventario!D3:D26,"Entrada")) -> 20
A6: =LOOKUP(2,1/(inventario!A:A<>""),inventario!A:A) -> 2024-11-17 | B6: Jersey de lana gris | C6: =SUMIFS(inventario!$G$3:$G$26,inventario!$C$3:$C$26,Tabla1[[#This Row],[PRODUCTOS]],inventario!$G$3:$G$26,">0") -> 19200 | D6: =SUMIFS(inventario!$G$3:$G$26,inventario!$C$3:$C$26,Tabla1[[#This Row],[PRODUCTOS]],inventario!$G$3:$G$26,"<0") -> -19200 | E6: =SUMIFS(inventario!I4:I27,inventario!C4:C27,B6,inventario!D4:D27,"Entrada")/SUMIFS(inventario!G4:G27,inventario!C4:C27,B6,inventario!D4:D27,"Entrada") -> 16.54583333 | F6: =SUMIFS(inventario!$G$3:$G$26,inventario!$C$3:$C$26,B6) -> 0 | G6: =IF(Tabla1[[#This Row],[EXISTENCIAS ACTUALES- CANTIDAD]]<$G$1,"realizar un nuevo pedido",IF(Tabla1[[#This Row],[EXISTENCIAS ACTUALES- CANTIDAD]]>=$G$2,"superamos el stock máximo","")) -> realizar un nuevo pedido | H6: =QUOTIENT(SUMIFS(inventario!I4:I27,inventario!C4:C27,B6,inventario!D4:D27,"Entrada"),SUMIFS(inventario!G4:G27,inventario!C4:C27,B6,inventario!D4:D27,"Entrada")) -> 16
A7: =LOOKUP(2,1/(inventario!A:A<>""),inventario!A:A) -> 2024-11-17 | B7: Camiseta básica negra | C7: =SUMIFS(inventario!$G$3:$G$26,inventario!$C$3:$C$26,Tabla1[[#This Row],[PRODUCTOS]],inventario!$G$3:$G$26,">0") -> 6010 | D7: =SUMIFS(inventario!$G$3:$G$26,inventario!$C$3:$C$26,Tabla1[[#This Row],[PRODUCTOS]],inventario!$G$3:$G$26,"<0") -> -5111 | E7: =SUMIFS(inventario!I5:I28,inventario!C5:C28,B7,inventario!D5:D28,"Entrada")/SUMIFS(inventario!G5:G28,inventario!C5:C28,B7,inventario!D5:D28,"Entrada") -> 15.99 | F7: =SUMIFS(inventario!$G$3:$G$26,inventario!$C$3:$C$26,B7) -> 899 | G7: =IF(Tabla1[[#This Row],[EXISTENCIAS ACTUALES- CANTIDAD]]<$G$1,"realizar un nuevo pedido",IF(Tabla1[[#This Row],[EXISTENCIAS ACTUALES- CANTIDAD]]>=$G$2,"superamos el stock máximo","")) ->  | H7: =QUOTIENT(SUMIFS(inventario!I5:I28,inventario!C5:C28,B7,inventario!D5:D28,"Entrada"),SUMIFS(inventario!G5:G28,inventario!C5:C28,B7,inventario!D5:D28,"Entrada")) -> 15
A8: =LOOKUP(2,1/(inventario!A:A<>""),inventario!A:A) -> 2024-11-17 | B8: Cazadora de cuero marrón | C8: =SUMIFS(inventario!$G$3:$G$26,inventario!$C$3:$C$26,Tabla1[[#This Row],[PRODUCTOS]],inventario!$G$3:$G$26,">0") -> 3630 | D8: =SUMIFS(inventario!$G$3:$G$26,inventario!$C$3:$C$26,Tabla1[[#This Row],[PRODUCTOS]],inventario!$G$3:$G$26,"<0") -> -3085 | E8: =SUMIFS(inventario!I6:I29,inventario!C6:C29,B8,inventario!D6:D29,"Entrada")/SUMIFS(inventario!G6:G29,inventario!C6:C29,B8,inventario!D6:D29,"Entrada") -> 28.93 | F8: =SUMIFS(inventario!$G$3:$G$26,inventario!$C$3:$C$26,B8) -> 545 | G8: =IF(Tabla1[[#This Row],[EXISTENCIAS ACTUALES- CANTIDAD]]<$G$1,"realizar un nuevo pedido",IF(Tabla1[[#This Row],[EXISTENCIAS ACTUALES- CANTIDAD]]>=$G$2,"superamos el stock máximo","")) ->  | H8: =QUOTIENT(SUMIFS(inventario!I6:I29,inventario!C6:C29,B8,inventario!D6:D29,"Entrada"),SUMIFS(inventario!G6:G29,inventario!C6:C29,B8,inventario!D6:D29,"Entrada")) -> 28
A9: =LOOKUP(2,1/(inventario!A:A<>""),inventario!A:A) -> 2024-11-17 | B9: Pantalón clásico negro | C9: =SUMIFS(inventario!$G$3:$G$26,inventario!$C$3:$C$26,Tabla1[[#This Row],[PRODUCTOS]],inventario!$G$3:$G$26,">0") -> 5976 | D9: =SUMIFS(inventario!$G$3:$G$26,inventario!$C$3:$C$26,Tabla1[[#This Row],[PRODUCTOS]],inventario!$G$3:$G$26,"<0") -> -5976 | E9: =SUMIFS(inventario!I7:I30,inventario!C7:C30,B9,inventario!D7:D30,"Entrada")/SUMIFS(inventario!G7:G30,inventario!C7:C30,B9,inventario!D7:D30,"Entrada") -> 22.3 | F9: =SUMIFS(inventario!$G$3:$G$26,inventario!$C$3:$C$26,B9) -> 0 | G9: =IF(Tabla1[[#This Row],[EXISTENCIAS ACTUALES- CANTIDAD]]<$G$1,"realizar un nuevo pedido",IF(Tabla1[[#This Row],[EXISTENCIAS ACTUALES- CANTIDAD]]>=$G$2,"superamos el stock máximo","")) -> realizar un nuevo pedido | H9: =QUOTIENT(SUMIFS(inventario!I7:I30,inventario!C7:C30,B9,inventario!D7:D30,"Entrada"),SUMIFS(inventario!G7:G30,inventario!C7:C30,B9,inventario!D7:D30,"Entrada")) -> 22
A10: =LOOKUP(2,1/(inventario!A:A<>""),inventario!A:A) -> 2024-11-17 | B10: Falda plisada estampada | C10: =SUMIFS(inventario!$G$3:$G$26,inventario!$C$3:$C$26,Tabla1[[#This Row],[PRODUCTOS]],inventario!$G$3:$G$26,">0") -> 23484 | D10: =SUMIFS(inventario!$G$3:$G$26,inventario!$C$3:$C$26,Tabla1[[#This Row],[PRODUCTOS]],inventario!$G$3:$G$26,"<0") -> -16054 | E10: =SUMIFS(inventario!I8:I31,inventario!C8:C31,B10,inventario!D8:D31,"Entrada")/SUMIFS(inventario!G8:G31,inventario!C8:C31,B10,inventario!D8:D31,"Entrada") -> 22.98126852 | F10: =SUMIFS(inventario!$G$3:$G$26,inventario!$C$3:$C$26,B10) -> 7430 | G10: =IF(Tabla1[[#This Row],[EXISTENCIAS ACTUALES- CANTIDAD]]<$G$1,"realizar un nuevo pedido",IF(Tabla1[[#This Row],[EXISTENCIAS ACTUALES- CANTIDAD]]>=$G$2,"superamos el stock máximo","")) ->  | H10: =QUOTIENT(SUMIFS(inventario!I8:I31,inventario!C8:C31,B10,inventario!D8:D31,"Entrada"),SUMIFS(inventario!G8:G31,inventario!C8:C31,B10,inventario!D8:D31,"Entrada")) -> 22
F27: ñoljlkijkljkljklhkjldwjklaqsjkljkl

Sheet inventario
A1: Control Entradas y Salidas
A2: Fecha Operación | B2: Código del producto | C2: Producto | D2: Operación | E2: Proveedor/ | F2: Num. Factura | G2: cantidad | H2: precio | I2: importe
A3: 2024-05-01 | B3: Cababla01 | C3: Camiseta básica blanca | D3: Entrada | E3: cliente | F3: A2024-1 | G3: 10000 | H3: 18.46 | I3: =IF(inventario!$H3<>"",inventario!$G3*inventario!$H3,"") -> 184600
A4: 2024-05-02 | B4: Cababla01 | C4: Camiseta básica blanca | D4: Salida | E4: ZACIL STRAPLINE S.L. | F4: S2024-1 | G4: -8400 | I4: =IF(inventario!$H4<>"",inventario!$G4*inventario!$H4,"") -> 
A5: 2024-05-02 | B5: jlan01 | C5: Jersey de lana gris | D5: Entrada | E5: Moda Urbana S.L. | F5: A2024-2 | G5: 11200 | H5: 17.65 | I5: =IF(inventario!$H5<>"",inventario!$G5*inventario!$H5,"") -> 197680
A6: 2024-05-04 | B6: jlan01 | C6: Jersey de lana gris | D6: Salida | E6: ZACIL STRAPLINE S.L. | F6: S2024-2 | G6: -8500 | I6: =IF(inventario!$H6<>"",inventario!$G6*inventario!$H6,"") -> 
A7: 2024-05-05 | B7: Cababla01 | C7: Camiseta básica blanca | D7: Entrada | E7: Moda Textil S.A. | F7: A2024-3 | G7: 10000 | H7: 20 | I7: =IF(inventario!$H7<>"",inventario!$G7*inventario!$H7,"") -> 200000
A8: 2024-05-08 | B8: jlan01 | C8: Jersey de lana gris | D8: Entrada | E8: Moda Urbana S.L. | F8: A2024-4 | G8: 8000 | H8: 15 | I8: =IF(inventario!$H8<>"",inventario!$G8*inventario!$H8,"") -> 120000
A9: 2024-06-20 | B9: Cababla01 | C9: Camiseta básica blanca | D9: Salida | E9: MARA STRAPLINE S.A. | F9: S2024-3 | G9: -1480 | I9: =IF(inventario!$H9<>"",inventario!$G9*inventario!$H9,"") -> 
A10: 2024-06-20 | B10: jlan01 | C10: Jersey de lana gris | D10: Salida | E10: MARA STRAPLINE S.A. | F10: S2024-3 | G10: -10200 | I10: =IF(inventario!$H10<>"",inventario!$G10*inventario!$H10,"") -> 
A11: 2024-06-28 | B11: falplies01 | C11: Falda plisada estampada | D11: Entrada | E11: Moda Elegante S.A. | F11: A2024-5 | G11: 10941 | H11: 23.96 | I11: =IF(inventario!$H11<>"",inventario!$G11*inventario!$H11,"") -> 262146.36
A12: 2024-06-29 | B12: Cabane01 | C12: Camiseta básica negra | D12: Entrada | E12: Moda Textil S.A. | F12: A2024-6 | G12: 6010 | H12: 15.99 | I12: =IF(inventario!$H12<>"",inventario!$G12*inventario!$H12,"") -> 96099.9
A13: 2024-06-30 | B13: Cababla01 | C13: Camiseta básica blanca | D13: Salida | E13: MARA STRAPLINE S.A. | F13: S2024-4 | G13: -8000 | I13: =IF(inventario!$H13<>"",inventario!$G13*inventario!$H13,"") -> 
A14: 2024-06-30 | B14: paclane01 | C14: Pantalón clásico negro | D14: Entrada | E14: Moda Elegante S.A. | F14: A2024-7 | G14: 5976 | H14: 22.3 | I14: =IF(inventario!$H14<>"",inventario!$G14*inventario!$H14,"") -> 133264.8
A15: 2024-07-01 | B15: Cabane01 | C15: Camiseta básica negra | D15: Salida | E15: ZACIL STRAPLINE S.L. | F15: S2024-5 | G15: -5111 | I15: =IF(inventario!$H15<>"",inventario!$G15*inventario!$H15,"") -> 
A16: 2024-07-14 | B16: Cababla01 | C16: Jersey de lana gris | D16: Salida | E16: MARA STRAPLINE S.A. | F16: S2024-6 | G16: -500 | I16: =IF(inventario!$H16<>"",inventario!$G16*inventario!$H16,"") -> 
A17: 2024-07-14 | B17: Cababla01 | C17: Camiseta básica blanca | D17: Entrada | E17: Moda Textil S.A. | F17: A2024-8 | G17: 12000 | H17: 23 | I17: =IF(inventario!$H17<>"",inventario!$G17*inventario!$H17,"") -> 276000
A18: 2024-07-23 | B18: cacma01 | C18: Cazadora de cuero marrón | D18: Entrada | E18: Moda Elegante S.A. | F18: A2024-9 | G18: 3630 | H18: 28.93 | I18: =IF(inventario!$H18<>"",inventario!$G18*inventario!$H18,"") -> 105015.9
A19: 2024-07-25 | B19: cacma01 | C19: Cazadora de cuero marrón | D19: Salida | E19: ZACIL STRAPLINE S.L. | F19: S2024-7 | G19: -3085 | I19: =IF(inventario!$H19<>"",inventario!$G19*inventario!$H19,"") -> 
A20: 2024-07-25 | B20: falplies01 | C20: Falda plisada estampada | D20: Entrada | E20: Moda Elegante S.A. | F20: A2024-10 | G20: 7934 | H20: 25.6 | I20: =IF(inventario!$H20<>"",inventario!$G20*inventario!$H20,"") -> 203110.4
A21: 2024-08-01 | B21: paclane01 | C21: Pantalón clásico negro | D21: Salida | E21: MARA STRAPLINE S.A. | F21: S2024-8 | G21: -5080 | I21: =IF(inventario!$H21<>"",inventario!$G21*inventario!$H21,"") -> 
A22: 2024-08-01 | B22: falplies01 | C22: Falda plisada estampada | D22: Salida | E22: MARA STRAPLINE S.A. | F22: S2024-8 | G22: -6744 | I22: =IF(inventario!$H22<>"",inventario!$G22*inventario!$H22,"") -> 
A23: 2024-08-05 | B23: paclane01 | C23: Pantalón clásico negro | D23: Salida | E23: ZACIL STRAPLINE S.L. | F23: S2024-9 | G23: -896 | I23: =IF(inventario!$H23<>"",inventario!$G23*inventario!$H23,"") -> 
A24: 2024-09-18 | B24: falplies01 | C24: Falda plisada estampada | D24: Salida | E24: MARA STRAPLINE S.A. | F24: S2024-10 | G24: -9300 | I24: =IF(inventario!$H24<>"",inventario!$G24*inventario!$H24,"") -> 
A25: 2024-11-15 | B25: falplies01 | C25: Falda plisada estampada | D25: Entrada | E25: Moda Elegante S.A. | F25: A2024-11 | G25: 4609 | H25: 16.15 | I25: =IF(inventario!$H25<>"",inventario!$G25*inventario!$H25,"") -> 74435.35
A26: 2024-11-17 | B26: falplies01 | C26: Falda plisada estampada | D26: Salida | E26: Ajuste: camisetas manchadas | F26: Al2024-01 | G26: -10 | I26: =IF(inventario!$H26<>"",inventario!$G26*inventario!$H26,"") -> 
